fUST/lending_fUST_20250221
["ID","MTS","AMOUNT","RATE_DAILY","PERIOD"]
[353845682,1740090642153,-490.51984356,0.00014027,2]
[353845683,1740090642162,-500.0,0.00014027,2]
[353845684,1740090642172,-651.13,0.00014027,2]
[353845685,1740090642185,-187.82799862,0.00014027,2]
[353845686,1740090642201,-500.0,0.00014027,2]
[353845687,1740090642210,-500.0,0.00014027,2]
[353845688,1740090642220,-500.0,0.00014027,2]
[353845689,1740090642229,-500.0,0.00014027,2]
[353845690,1740090642239,-963.87,0.00014027,2]
[353845691,1740090642249,-2136.02,0.00014027,2]
[353845692,1740090642259,-500.0,0.00014027,2]
[353845693,1740090642269,-1200.25,0.00014027,2]
[353845694,1740090642278,-500.0,0.00014027,2]
[353845695,1740090642287,-500.0,0.00014027,2]
[353845696,1740090642296,-571.45,0.00014027,2]
[353845697,1740090642304,-942.87,0.00014027,2]
[353845698,1740090642314,-500.0,0.00014027,2]
[353845699,1740090642322,-500.0,0.00014027,2]
[353845700,1740090642331,-1464.15,0.00014027,2]
[353845701,1740090642341,-822.38,0.00014027,2]
[353845702,1740090642351,-944.8,0.00014027,2]
[353845703,1740090642360,-500.0,0.00014027,2]
[353845704,1740090642369,-877.55,0.00014027,2]
[353845705,1740090642379,-500.0,0.00014027,2]
[353845706,1740090642388,-1006.27,0.00014027,2]
[353845707,1740090642398,-906.7,0.00014027,2]
[353845708,1740090642407,-500.0,0.00014027,2]
[353845709,1740090642416,-500.0,0.00014027,2]
[353845710,1740090642425,-978.65,0.00014027,2]
[353845711,1740090642434,-633.0,0.00014027,2]
[353845712,1740090642444,-581.54,0.00014027,2]
[353845713,1740090642458,-786.26,0.00014027,2]
[353845714,1740090642467,-546.36,0.00014027,2]
[353845715,1740090642477,-500.0,0.00014027,2]
[353845716,1740090642487,-817.41,0.00014027,2]
[353845717,1740090642497,-1738.99,0.00014027,2]
[353845718,1740090642507,-1475.64,0.00014027,2]
[353845719,1740090642516,-1116.83,0.00014027,2]
[353845720,1740090642526,-582.64,0.00014027,2]
[353845721,1740090642538,-500.0,0.00014027,2]
[353845722,1740090642547,-840.08,0.00014027,2]
[353845723,1740090642557,-508.91,0.00014027,2]
[353845724,1740090642566,-500.0,0.00014027,2]
[353845725,1740090642575,-500.0,0.00014027,2]
[353845726,1740090642584,-813.03,0.00014027,2]
[353845727,1740090642593,-500.0,0.00014027,2]
[353845728,1740090642603,-500.0,0.00014027,2]
[353845729,1740090642612,-500.0,0.00014027,2]
[353845730,1740090642622,-608.19,0.00014027,2]
[353845731,1740090642631,-500.0,0.00014027,2]
[353845732,1740090642641,-690.16,0.00014027,2]
[353845733,1740090642650,-500.0,0.00014027,2]
[353845734,1740090642659,-1005.5,0.00014027,2]
[353845735,1740090642669,-500.0,0.00014027,2]
[353845736,1740090642679,-505.98,0.00014027,2]
[353845737,1740090642689,-18019.29,0.00014027,2]
[353845738,1740090642699,-1994.66,0.00014027,2]
[353845739,1740090642709,-500.0,0.00014027,2]
[353845740,1740090642718,-1067.52,0.00014027,2]
[353845741,1740090642727,-1405.27,0.00014027,2]
[353845742,1740090642736,-1563.15,0.00014027,2]
[353845743,1740090642746,-520.8,0.00014027,2]
[353845744,1740090642755,-500.0,0.00014027,2]
[353845745,1740090642765,-1414.84,0.00014027,2]
[353845746,1740090642775,-500.0,0.00014027,2]
[353845747,1740090642785,-3295.6,0.00014027,2]
[353845748,1740090642796,-1500.96,0.00014027,2]
[353845750,1740090642806,-1990.15,0.00014027,2]
[353845751,1740090642815,-51334.38,0.00014027,2]
[353845753,1740090642825,-500.0,0.00014027,2]
[353845754,1740090642834,-4539.86,0.00014027,2]
[353845756,1740090642844,-2545.96,0.00014027,2]
[353845758,1740090642854,-8961.72,0.00014027,2]
[353845759,1740090642863,-625.69,0.00014027,2]
[353845760,1740090642873,-1696.61,0.00014027,2]
[353845761,1740090642882,-500.0,0.00014027,2]
[353845762,1740090642892,-756.78,0.00014027,2]
[353845763,1740090642901,-557.68,0.00014027,2]
[353845764,1740090642911,-4312.39,0.00014027,2]
[353845765,1740090642921,-2534.31,0.00014027,2]
[353845766,1740090642931,-4521.33,0.00014027,2]
[353845768,1740090642940,-1287.77,0.00014027,2]
[353845769,1740090642950,-1731.36,0.00014027,2]
[353845770,1740090642960,-657.91,0.00014027,2]
[353845771,1740090642970,-1146.52,0.00014027,2]
[353845772,1740090642979,-843.04,0.00014027,2]
[353845773,1740090643088,-500.0,0.00014027,2]
[353845774,1740090643098,-673.36,0.00014027,2]
[353845775,1740090643108,-500.0,0.00014027,2]
[353845776,1740090643118,-1414.86,0.00014027,2]
[353845777,1740090643127,-707.77,0.00014027,2]
[353845778,1740090643137,-2455.78,0.00014027,2]
[353845779,1740090643146,-815.13,0.00014027,2]
[353845780,1740090643155,-500.0,0.00014027,2]
[353845781,1740090643165,-2735.62,0.00014027,2]
[353845782,1740090643174,-500.0,0.00014027,2]
[353845783,1740090643184,-500.0,0.00014027,2]
[353845784,1740090643193,-755.62,0.00014027,2]
[353845785,1740090643203,-500.0,0.00014027,2]
[353845786,1740090643212,-500.0,0.00014027,2]
[353845787,1740090643222,-500.0,0.00014027,2]
[353845788,1740090643235,-22265.86,0.00014027,2]
[353845789,1740090643245,-1079.07,0.00014027,2]
[353845790,1740090643255,-7600.2,0.00014027,2]
[353845791,1740090643264,-500.0,0.00014027,2]
[353845792,1740090643276,-2283.23,0.00014027,2]
[353845793,1740090643290,-2745.46,0.00014027,2]
[353845794,1740090643299,-2549.9,0.00014027,2]
[353845795,1740090643309,-1105.43,0.00014027,2]
[353845796,1740090643318,-787.94,0.00014027,2]
[353845797,1740090643327,-514.28235027,0.00014027,2]
[353845798,1740090643337,-657.98,0.00014027,2]
[353845799,1740090643346,-570.04,0.00014027,2]
[353845800,1740090643356,-500.0,0.00014027,2]
[353845802,1740090643366,-500.0,0.00014027,2]
[353845804,1740090643375,-503.71,0.00014027,2]
[353845806,1740090643386,-2536.41,0.00014027,2]
[353845808,1740090643396,-8438.89,0.00014027,2]
[353845810,1740090643406,-3897.63,0.00014027,2]
[353845812,1740090643415,-500.0,0.00014027,2]
[353845814,1740090643425,-7438.69753278,0.00014044,2]
[353845816,1740090643434,-168.26106217,0.00014082,2]
[353845818,1740090643443,-11866.1117743,0.00014084,2]
[353845820,1740090643454,-2573.69451249,0.00014084,2]
[353845822,1740090643464,-744.67164941,0.00014106,2]
[353845824,1740090643474,-500.0,0.00014109,2]
[353845826,1740090643483,-500.0,0.00014109,2]
[353845828,1740090643493,-500.0,0.00014109,2]
[353845830,1740090643502,-500.0,0.00014109,2]
[353845832,1740090643512,-651.13,0.00014109,2]
[353845834,1740090643520,-500.0,0.00014109,2]
[353845836,1740090643532,-500.0,0.00014109,2]
[353845838,1740090643543,-500.0,0.00014109,2]
[353845840,1740090643553,-500.0,0.00014109,2]
[353845842,1740090643562,-963.87,0.00014109,2]
[353845844,1740090643571,-2136.02,0.00014109,2]
[353845846,1740090643581,-500.0,0.00014109,2]
[353845848,1740090643590,-1200.25,0.00014109,2]
[353845850,1740090643599,-500.0,0.00014109,2]
[353845852,1740090643609,-500.0,0.00014109,2]
[353845854,1740090643619,-571.45,0.00014109,2]
[353845856,1740090643629,-942.87,0.00014109,2]
[353845858,1740090643638,-234.67048638,0.00014109,2]
[353845860,1740090643648,-500.0,0.00014109,2]
[353845862,1740090643657,-1464.15,0.00014109,2]
[353845864,1740090643667,-822.38,0.00014109,2]
[353845866,1740090643676,-944.8,0.00014109,2]
[353845868,1740090643685,-500.0,0.00014109,2]
[353845870,1740090643694,-877.55,0.00014109,2]
[353845872,1740090643703,-500.0,0.00014109,2]
[353845874,1740090643712,-1006.27,0.00014109,2]
[353845876,1740090643721,-906.7,0.00014109,2]
[353845878,1740090643730,-500.0,0.00014109,2]
[353845880,1740090643739,-978.65,0.00014109,2]
[353845882,1740090643748,-500.0,0.00014109,2]
[353845884,1740090643757,-633.0,0.00014109,2]
[353845886,1740090643766,-581.54,0.00014109,2]
[353845888,1740090643775,-786.26,0.00014109,2]
[353845890,1740090643784,-546.36,0.00014109,2]
[353845892,1740090643794,-500.0,0.00014109,2]
[353845894,1740090643803,-817.41,0.00014109,2]
[353845896,1740090643812,-1738.99,0.00014109,2]
[353845898,1740090643823,-1475.64,0.00014109,2]
[353845900,1740090643832,-1116.83,0.00014109,2]
[353845902,1740090643841,-582.64,0.00014109,2]
[353845904,1740090643850,-500.0,0.00014109,2]
[353845906,1740090643859,-840.08,0.00014109,2]
[353845908,1740090643868,-508.91,0.00014109,2]
[353845910,1740090643878,-500.0,0.00014109,2]
[353845912,1740090643888,-500.0,0.00014109,2]
[353845914,1740090643898,-813.03,0.00014109,2]
[353845916,1740090643907,-500.0,0.00014109,2]
[353845918,1740090643916,-500.0,0.00014109,2]
[353845920,1740090643925,-500.0,0.00014109,2]
[353845922,1740090643935,-608.19,0.00014109,2]
[353845924,1740090643944,-500.0,0.00014109,2]
[353845926,1740090643953,-690.16,0.00014109,2]
[353845928,1740090643963,-500.0,0.00014109,2]
[353845930,1740090643972,-1005.5,0.00014109,2]
[353845932,1740090643982,-500.0,0.00014109,2]
[353845934,1740090643994,-505.98,0.00014109,2]
[353845936,1740090644003,-18019.29,0.00014109,2]
[353845938,1740090644013,-1994.66,0.00014109,2]
[353845940,1740090644022,-500.0,0.00014109,2]
[353845942,1740090644032,-1067.52,0.00014109,2]
[353845944,1740090644041,-1405.27,0.00014109,2]
[353845946,1740090644050,-1563.15,0.00014109,2]
[353845948,1740090644061,-520.8,0.00014109,2]
[353845950,1740090644071,-500.0,0.00014109,2]
[353845952,1740090644080,-1414.84,0.00014109,2]
[353845954,1740090644089,-500.0,0.00014109,2]
[353845956,1740090644099,-3295.6,0.00014109,2]
[353845958,1740090644108,-1500.96,0.00014109,2]
[353845960,1740090644117,-1990.15,0.00014109,2]
[353845962,1740090644126,-51334.38,0.00014109,2]
[353845964,1740090644136,-500.0,0.00014109,2]
[353845966,1740090644145,-4539.86,0.00014109,2]
[353845968,1740090644154,-2545.96,0.00014109,2]
[353845970,1740090644164,-8961.72,0.00014109,2]
[353845972,1740090644174,-625.69,0.00014109,2]
[353845975,1740090644183,-1696.61,0.00014109,2]
[353845976,1740090644193,-500.0,0.00014109,2]
[353845979,1740090644203,-756.78,0.00014109,2]
[353845980,1740090644212,-557.68,0.00014109,2]
[353845983,1740090644221,-4312.39,0.00014109,2]
[353845984,1740090644231,-2534.31,0.00014109,2]
[353845987,1740090644241,-4521.33,0.00014109,2]
[353845989,1740090644250,-1287.77,0.00014109,2]
[353845991,1740090644259,-1731.36,0.00014109,2]
[353845993,1740090644269,-657.91,0.00014109,2]
[353845995,1740090644279,-1146.52,0.00014109,2]
[353845997,1740090644288,-843.04,0.00014109,2]
[353845999,1740090644297,-308.07,0.00014109,2]
[353846001,1740090644306,-673.36,0.00014109,2]
[353846003,1740090644315,-500.0,0.00014109,2]
[353846005,1740090644325,-1414.86,0.00014109,2]
[353846007,1740090644334,-707.77,0.00014109,2]
[353846009,1740090644344,-2455.78,0.00014109,2]
[353846011,1740090644353,-815.13,0.00014109,2]
[353846013,1740090644363,-305.26121801,0.00014109,2]
[353846015,1740090644372,-2735.62,0.00014109,2]
[353846017,1740090644381,-500.0,0.00014109,2]
[353846018,1740090644390,-755.62,0.00014109,2]
[353846021,1740090644399,-500.0,0.00014109,2]
[353846023,1740090644409,-500.0,0.00014109,2]
[353846025,1740090644419,-500.0,0.00014109,2]
[353846027,1740090644428,-22265.86,0.00014109,2]
[353846029,1740090644438,-1079.07,0.00014109,2]
[353846031,1740090644448,-7600.2,0.00014109,2]
[353846032,1740090644460,-500.0,0.00014109,2]
[353846035,1740090644470,-2283.23,0.00014109,2]
[353846036,1740090644479,-2745.46,0.00014109,2]
[353846039,1740090644488,-2549.9,0.00014109,2]
[353846041,1740090644498,-1105.43,0.00014109,2]
[353846043,1740090644507,-787.94,0.00014109,2]
[353846045,1740090644517,-657.98,0.00014109,2]
[353846047,1740090644526,-570.04,0.00014109,2]
[353846049,1740090644537,-500.0,0.00014109,2]
[353846050,1740090644546,-500.0,0.00014109,2]
[353846052,1740090644555,-503.71,0.00014109,2]
[353846054,1740090644564,-2536.41,0.00014109,2]
[353846056,1740090644573,-8438.89,0.00014109,2]
[353846058,1740090644582,-3897.63,0.00014109,2]
[353846060,1740090644592,-318.5,0.00014109,2]
[353846063,1740090644601,-1248.90148633,0.00014123,2]
[353846064,1740090644610,-653.7503432,0.00014149,2]
[353846066,1740090644619,-500.33894546,0.00014173,2]
[353846068,1740090644628,-500.0,0.00014173,2]
[353846070,1740090644637,-500.0,0.00014173,2]
[353846072,1740090644647,-500.0,0.00014173,2]
[353846075,1740090644656,-500.0,0.00014173,2]
[353846077,1740090644666,-500.0,0.00014173,2]
[353846078,1740090644675,-500.0,0.00014173,2]
[353846080,1740090644684,-500.0,0.00014173,2]
[353846082,1740090644694,-500.0,0.00014173,2]
[353846084,1740090644703,-500.0,0.00014173,2]
[353846086,1740090644712,-500.0,0.00014173,2]
[353846088,1740090644722,-500.0,0.00014173,2]
[353846091,1740090644732,-156.63025775,0.00014173,2]
[353846093,1740090644742,-500.0,0.00014173,2]
[353846095,1740090644751,-500.46242224,0.00014173,2]
[353846096,1740090644761,-500.56083412,0.00014173,2]
[353846098,1740090644771,-500.0,0.00014173,2]
[353846100,1740090644780,-162.97630381,0.00014173,2]
[353846103,1740090644789,-504.86614696,0.00014173,2]
[353846105,1740090644799,-500.0,0.00014173,2]
[353846107,1740090644809,-501.04782091,0.00014173,2]
[353846109,1740090644818,-330.74368863,0.00014173,2]
[353846111,1740090644828,-500.0,0.00014173,2]
[353846113,1740090644837,-500.0,0.00014173,2]
[353846115,1740090644847,-500.23465509,0.00014173,2]
[353846117,1740090644857,-500.0,0.00014191,2]
[353846119,1740090644866,-500.0,0.00014191,2]
[353846121,1740090644875,-500.0,0.00014191,2]
[353846123,1740090644884,-500.0,0.00014191,2]
[353846124,1740090644893,-651.13,0.00014191,2]
[353846126,1740090644902,-500.0,0.00014191,2]
[353846128,1740090644912,-500.0,0.00014191,2]
[353846130,1740090644921,-500.0,0.00014191,2]
[353846132,1740090644930,-500.0,0.00014191,2]
[353846135,1740090644940,-963.87,0.00014191,2]
[353846137,1740090644950,-2136.02,0.00014191,2]
[353846139,1740090644959,-210.36291005,0.00014191,2]
[353846141,1740090644969,-1200.25,0.00014191,2]
[353846143,1740090644978,-500.0,0.00014191,2]
[353846153,1740090645075,-500.0,0.00014191,2]
[353846155,1740090645086,-571.45,0.00014191,2]
[353846157,1740090645096,-942.87,0.00014191,2]
[353846159,1740090645106,-500.0,0.00014191,2]
[353846161,1740090645115,-1464.15,0.00014191,2]
[353846163,1740090645126,-822.38,0.00014191,2]
[353846166,1740090645135,-944.8,0.00014191,2]
[353846168,1740090645145,-877.55,0.00014191,2]
[353846169,1740090645154,-500.0,0.00014191,2]
[353846171,1740090645164,-500.0,0.00014191,2]
[353846174,1740090645174,-1006.27,0.00014191,2]
[353846176,1740090645183,-906.7,0.00014191,2]
[353846177,1740090645193,-500.0,0.00014191,2]
[353846179,1740090645203,-978.65,0.00014191,2]
[353846182,1740090645213,-500.0,0.00014191,2]
[353846183,1740090645222,-633.0,0.00014191,2]
[353846186,1740090645232,-581.54,0.00014191,2]
[353846188,1740090645241,-786.26,0.00014191,2]
[353846189,1740090645250,-546.36,0.00014191,2]
[353846192,1740090645261,-500.0,0.00014191,2]
[353846193,1740090645271,-817.41,0.00014191,2]
[353846195,1740090645280,-1738.99,0.00014191,2]
[353846197,1740090645290,-1475.64,0.00014191,2]
[353846199,1740090645299,-1116.83,0.00014191,2]
[353846202,1740090645310,-582.64,0.00014191,2]
[353846204,1740090645320,-500.0,0.00014191,2]
[353846206,1740090645329,-840.08,0.00014191,2]
[353846208,1740090645339,-508.91,0.00014191,2]
[353846210,1740090645348,-500.0,0.00014191,2]
[353846211,1740090645357,-500.0,0.00014191,2]
[353846213,1740090645366,-813.03,0.00014191,2]
[353846215,1740090645376,-500.0,0.00014191,2]
[353846217,1740090645385,-500.0,0.00014191,2]
[353846219,1740090645394,-500.0,0.00014191,2]
[353846221,1740090645404,-608.19,0.00014191,2]
[353846224,1740090645413,-500.0,0.00014191,2]
[353846226,1740090645423,-690.16,0.00014191,2]
[353846228,1740090645432,-500.0,0.00014191,2]
[353846229,1740090645441,-1005.5,0.00014191,2]
[353846232,1740090645452,-500.0,0.00014191,2]
[353846233,1740090645465,-505.98,0.00014191,2]
[353846236,1740090645474,-18019.29,0.00014191,2]
[353846238,1740090645484,-1994.66,0.00014191,2]
[353846240,1740090645494,-500.0,0.00014191,2]
[353846241,1740090645505,-1067.52,0.00014191,2]
[353846244,1740090645515,-1405.27,0.00014191,2]
[353846245,1740090645524,-1563.15,0.00014191,2]
[353846248,1740090645538,-520.8,0.00014191,2]
[353846250,1740090645548,-500.0,0.00014191,2]
[353846252,1740090645558,-1414.84,0.00014191,2]
[353846253,1740090645567,-500.0,0.00014191,2]
[353846254,1740090645576,-3295.6,0.00014191,2]
[353846255,1740090645585,-1500.96,0.00014191,2]
[353846256,1740090645594,-1990.15,0.00014191,2]
[353846257,1740090645603,-51334.38,0.00014191,2]
[353846258,1740090645612,-341.33759118,0.00014191,2]
[353846259,1740090645622,-4539.86,0.00014191,2]
[353846260,1740090645631,-2545.96,0.00014191,2]
[353846261,1740090645641,-8961.72,0.00014191,2]
[353846262,1740090645651,-625.69,0.00014191,2]
[353846263,1740090645661,-1696.61,0.00014191,2]
[353846264,1740090645671,-500.0,0.00014191,2]
[353846265,1740090645681,-756.78,0.00014191,2]
[353846266,1740090645691,-557.68,0.00014191,2]
[353846267,1740090645701,-4312.39,0.00014191,2]
[353846268,1740090645711,-2534.31,0.00014191,2]
[353846269,1740090645721,-4521.33,0.00014191,2]
[353846270,1740090645730,-1287.77,0.00014191,2]
[353846271,1740090645739,-1731.36,0.00014191,2]
[353846272,1740090645749,-657.91,0.00014191,2]
[353846273,1740090645758,-1146.52,0.00014191,2]
[353846274,1740090645768,-843.04,0.00014191,2]
[353846275,1740090645778,-673.36,0.00014191,2]
[353846276,1740090645788,-473.78484,0.00014191,2]
[353846277,1740090645798,-1414.86,0.00014191,2]
[353846278,1740090645808,-707.77,0.00014191,2]
[353846279,1740090645818,-2455.78,0.00014191,2]
[353846280,1740090645827,-815.13,0.00014191,2]
[353846281,1740090645836,-2735.62,0.00014191,2]
[353846282,1740090645846,-500.0,0.00014191,2]
[353846283,1740090645856,-755.62,0.00014191,2]
[353846284,1740090645866,-500.0,0.00014191,2]
[353846285,1740090645876,-500.0,0.00014191,2]
[353846287,1740090645886,-500.0,0.00014191,2]
[353846288,1740090645895,-22265.86,0.00014191,2]
[353846289,1740090645905,-1079.07,0.00014191,2]
[353846290,1740090645915,-7600.2,0.00014191,2]
[353846291,1740090645924,-500.0,0.00014191,2]
[353846292,1740090645933,-2283.23,0.00014191,2]
[353846293,1740090645943,-2745.46,0.00014191,2]
[353846294,1740090645952,-2549.9,0.00014191,2]
[353846295,1740090645962,-1105.43,0.00014191,2]
[353846296,1740090645971,-787.94,0.00014191,2]
[353846297,1740090645980,-657.98,0.00014191,2]
[353846298,1740090645990,-570.04,0.00014191,2]
[353846299,1740090645999,-619.18273082,0.00014191,2]
[353846300,1740090646008,-500.0,0.00014191,2]
[353846301,1740090646018,-503.71,0.00014191,2]
[353846302,1740090646028,-2536.41,0.00014191,2]
[353846303,1740090646038,-8438.89,0.00014191,2]
[353846304,1740090646047,-3897.63,0.00014191,2]
[353846305,1740090646057,-744.67164941,0.00014206,2]
[353846306,1740090646066,-1000.0,0.00014221,2]
[353846307,1740090646075,-916.79402787,0.00014221,2]
[353846308,1740090646085,-1000.0,0.00014221,2]
[353846309,1740090646095,-1000.0,0.00014221,2]
[353846310,1740090646104,-750.76985661,0.00014221,2]
[353846311,1740090646113,-1000.0,0.00014221,2]
[353846312,1740090646123,-1000.0,0.00014221,2]
[353846313,1740090646132,-543.52801653,0.00014221,2]
[353846314,1740090646142,-1000.0,0.00014221,2]
[353846315,1740090646151,-1000.0,0.00014221,2]
[353846316,1740090646160,-670.82861777,0.00014221,2]
[353846317,1740090646169,-166.1,0.00014238,2]
[353846318,1740090646178,-500.0,0.00014273,2]
[353846319,1740090646187,-500.0,0.00014273,2]
[353846320,1740090646197,-500.0,0.00014273,2]
[353846321,1740090646207,-500.0,0.00014273,2]
[353846322,1740090646216,-651.13,0.00014273,2]
[353846323,1740090646226,-500.0,0.00014273,2]
[353846324,1740090646235,-500.0,0.00014273,2]
[353846325,1740090646244,-500.0,0.00014273,2]
[353846326,1740090646253,-500.0,0.00014273,2]
[353846327,1740090646262,-963.87,0.00014273,2]
[353846328,1740090646271,-2136.02,0.00014273,2]
[353846329,1740090646281,-1200.25,0.00014273,2]
[353846330,1740090646290,-500.0,0.00014273,2]
[353846331,1740090646299,-500.0,0.00014273,2]
[353846332,1740090646308,-571.45,0.00014273,2]
[353846333,1740090646317,-942.87,0.00014273,2]
[353846334,1740090646327,-500.0,0.00014273,2]
[353846335,1740090646335,-1464.15,0.00014273,2]
[353846336,1740090646344,-822.38,0.00014273,2]
[353846337,1740090646353,-944.8,0.00014273,2]
[353846338,1740090646363,-877.55,0.00014273,2]
[353846339,1740090646372,-570.54908009,0.00014273,2]
[353846340,1740090646381,-500.0,0.00014273,2]
[353846341,1740090646390,-1006.27,0.00014273,2]
[353846342,1740090646399,-906.7,0.00014273,2]
[353846343,1740090646408,-500.0,0.00014273,2]
[353846344,1740090646417,-978.65,0.00014273,2]
[353846345,1740090646426,-275.32529354,0.00014273,2]
[353846346,1740090646436,-633.0,0.00014273,2]
[353846347,1740090646445,-581.54,0.00014273,2]
[353846348,1740090646459,-786.26,0.00014273,2]
[353846349,1740090646468,-546.36,0.00014273,2]
[353846350,1740090646478,-500.0,0.00014273,2]
[353846351,1740090646488,-817.41,0.00014273,2]
[353846352,1740090646499,-1738.99,0.00014273,2]
[353846353,1740090646508,-1475.64,0.00014273,2]
[353846354,1740090646519,-1116.83,0.00014273,2]
[353846355,1740090646528,-582.64,0.00014273,2]
[353846356,1740090646538,-500.0,0.00014273,2]
[353846357,1740090646548,-840.08,0.00014273,2]
[353846358,1740090646557,-508.91,0.00014273,2]
[353846359,1740090646567,-530.9174586,0.00014273,2]
[353846360,1740090646576,-500.0,0.00014273,2]
[353846361,1740090646586,-813.03,0.00014273,2]
[353846362,1740090646595,-500.0,0.00014273,2]
[353846363,1740090646604,-500.0,0.00014273,2]
[353846364,1740090646613,-500.0,0.00014273,2]
[353846365,1740090646622,-608.19,0.00014273,2]
[353846366,1740090646631,-500.0,0.00014273,2]
[353846367,1740090646640,-690.16,0.00014273,2]
[353846368,1740090646649,-500.0,0.00014273,2]
[353846369,1740090646659,-1005.5,0.00014273,2]
[353846370,1740090646669,-500.0,0.00014273,2]
[353846371,1740090646678,-505.98,0.00014273,2]
[353846372,1740090646687,-18019.29,0.00014273,2]
[353846373,1740090646696,-1994.66,0.00014273,2]
[353846374,1740090646706,-500.0,0.00014273,2]
[353846375,1740090646715,-1067.52,0.00014273,2]
[353846376,1740090646725,-1405.27,0.00014273,2]
[353846377,1740090646740,-1563.15,0.00014273,2]
[353846378,1740090646757,-520.8,0.00014273,2]
[353846379,1740090646769,-500.0,0.00014273,2]
[353846380,1740090646778,-1414.84,0.00014273,2]
[353846381,1740090646787,-500.0,0.00014273,2]
[353846382,1740090646797,-3295.6,0.00014273,2]
[353846383,1740090646806,-1500.96,0.00014273,2]
[353846384,1740090646816,-1990.15,0.00014273,2]
[353846385,1740090646825,-51334.38,0.00014273,2]
[353846386,1740090646834,-4539.86,0.00014273,2]
[353846387,1740090646843,-2545.96,0.00014273,2]
[353846388,1740090646935,-8961.72,0.00014273,2]
[353846389,1740090646945,-625.69,0.00014273,2]
[353846390,1740090646955,-1696.61,0.00014273,2]
[353846391,1740090646965,-500.0,0.00014273,2]
[353846392,1740090646975,-756.78,0.00014273,2]
[353846393,1740090646984,-557.68,0.00014273,2]
[353846394,1740090646994,-4312.39,0.00014273,2]
[353846395,1740090647003,-2534.31,0.00014273,2]
[353846396,1740090647013,-4521.33,0.00014273,2]
[353846397,1740090647022,-1287.77,0.00014273,2]
[353846398,1740090647032,-1731.36,0.00014273,2]
[353846399,1740090647042,-657.91,0.00014273,2]
[353846400,1740090647051,-1146.52,0.00014273,2]
[353846401,1740090647061,-843.04,0.00014273,2]
[353846402,1740090647074,-673.36,0.00014273,2]
[353846403,1740090647087,-1414.86,0.00014273,2]
[353846404,1740090647096,-707.77,0.00014273,2]
[353846405,1740090647106,-2455.78,0.00014273,2]
[353846406,1740090647115,-815.13,0.00014273,2]
[353846407,1740090647124,-2735.62,0.00014273,2]
[353846408,1740090647134,-500.0,0.00014273,2]
[353846409,1740090647144,-755.62,0.00014273,2]
[353846410,1740090647154,-500.0,0.00014273,2]
[353846411,1740090647163,-500.0,0.00014273,2]
[353846412,1740090647172,-500.0,0.00014273,2]
[353846413,1740090647182,-22265.86,0.00014273,2]
[353846414,1740090647192,-1079.07,0.00014273,2]
[353846415,1740090647201,-7600.2,0.00014273,2]
[353846416,1740090647210,-500.0,0.00014273,2]
[353846417,1740090647220,-2283.23,0.00014273,2]
[353846418,1740090647229,-2745.46,0.00014273,2]